fUST/lending_fUST_20240525
["ID","MTS","AMOUNT","RATE_DAILY","PERIOD"]
[327896946,1716587439556,-341.35,0.00024657,2]
[327896947,1716587439565,-500.0,0.00024657,2]
[327896948,1716587439575,-500.0,0.00024657,2]
[327896949,1716587439584,-500.0,0.00024657,2]
[327896950,1716587439594,-500.0,0.00024657,2]
[327896951,1716587439603,-370.64242245,0.00024657,2]
[327896952,1716587439612,-500.0,0.00024657,2]
[327896953,1716587439622,-339.70006732,0.00024657,2]
[327896954,1716587439631,-500.0,0.00024657,2]
[327896955,1716587439641,-500.0,0.00024657,2]
[327896956,1716587439650,-500.0,0.00024657,2]
[327896957,1716587439660,-500.0,0.00024657,2]
[327896958,1716587439669,-500.0,0.00024657,2]
[327896959,1716587439679,-500.0,0.00024657,2]
[327896960,1716587439689,-500.0,0.00024657,2]
[327896961,1716587439698,-1578.99,0.00024657,2]
[327896962,1716587439707,-1578.99,0.00024657,3]
[327896963,1716587439717,-1578.99,0.00024657,4]
[327896964,1716587439726,-1578.99,0.00024657,5]
[327896965,1716587439736,-1578.99,0.00024657,6]
[327896966,1716587439745,-500.0,0.00024657,2]
[327896967,1716587439754,-660.93,0.00024657,2]
[327896968,1716587439763,-500.0,0.00024657,2]
[327896969,1716587439774,-500.0,0.00024657,2]
[327896970,1716587439783,-500.0,0.00024657,2]
[327896971,1716587439793,-1381.86,0.00024657,3]
[327896972,1716587439802,-1381.86,0.00024657,3]
[327896973,1716587439812,-1381.86,0.00024657,3]
[327896974,1716587439822,-1381.86,0.00024657,3]
[327896975,1716587439831,-1381.86,0.00024657,3]
[327896976,1716587439840,-834.29,0.00024657,2]
[327896977,1716587439850,-500.0,0.00024657,2]
[327896978,1716587439860,-500.0,0.00024657,2]
[327896979,1716587439869,-500.0,0.00024657,2]
[327896980,1716587439879,-500.0,0.00024657,2]
[327896981,1716587439888,-500.0,0.00024657,2]
[327896982,1716587439898,-194.85,0.00024657,2]
[327896983,1716587439907,-500.0,0.00024657,2]
[327896984,1716587439916,-582.9,0.00024657,2]
[327896985,1716587439925,-500.0,0.00024657,2]
[327896986,1716587439935,-1111.8,0.00024657,2]
[327896987,1716587439944,-500.0,0.00024657,2]
[327896988,1716587439953,-500.0,0.00024657,2]
[327896989,1716587439962,-500.0,0.00024657,2]
[327896990,1716587439972,-500.0,0.00024657,2]
[327896991,1716587439981,-500.0,0.00024657,2]
[327896992,1716587439990,-500.0,0.00024657,2]
[327896993,1716587439999,-500.0,0.00024657,2]
[327896994,1716587440009,-1104.44,0.00024657,2]
[327896995,1716587440018,-500.0,0.00024657,2]
[327896996,1716587440027,-500.0,0.00024657,2]
[327896997,1716587440037,-500.0,0.00024657,2]
[327896998,1716587440046,-500.0,0.00024657,2]
[327896999,1716587440055,-500.0,0.00024657,2]
[327897000,1716587440064,-500.0,0.00024657,2]
[327897001,1716587440074,-500.0,0.00024657,2]
[327897002,1716587440083,-500.0,0.00024657,2]
[327897003,1716587440092,-500.0,0.00024657,2]
[327897004,1716587440102,-500.0,0.00024657,2]
[327897005,1716587440111,-500.0,0.00024657,2]
[327897006,1716587440120,-551.32,0.00024657,2]
[327897007,1716587440130,-500.0,0.00024657,2]
[327897008,1716587440139,-335.81662484,0.00024657,2]
[327897009,1716587440148,-500.0,0.00024657,2]
[327897010,1716587440161,-500.0,0.00024657,2]
[327897011,1716587440170,-500.0,0.00024657,2]
[327897012,1716587440179,-500.0,0.00024657,2]
[327897013,1716587440189,-500.0,0.00024657,2]
[327897014,1716587440198,-500.0,0.00024657,2]
[327897015,1716587440209,-500.0,0.00024657,2]
[327897016,1716587440219,-500.0,0.00024657,2]
[327897017,1716587440228,-500.0,0.00024657,2]
[327897018,1716587440240,-500.0,0.00024657,2]
[327897019,1716587440249,-500.0,0.00024657,2]
[327897020,1716587440260,-500.0,0.00024657,2]
[327897021,1716587440269,-214.48650151,0.000249,2]
[327897022,1716587440278,-1578.99,0.0002493,7]
[327897023,1716587440288,-500.0,0.00024931,3]
[327897024,1716587440298,-500.0,0.00024931,3]
[327897025,1716587440307,-500.0,0.00024931,3]
[327897026,1716587440317,-500.0,0.00024931,3]
[327897027,1716587440327,-500.0,0.00024931,3]
[327897028,1716587440337,-500.0,0.00024931,3]
[327897029,1716587440346,-500.0,0.00024931,3]
[327897030,1716587440356,-500.0,0.00024931,3]
[327897031,1716587440365,-500.0,0.00024931,3]
[327897032,1716587440375,-500.0,0.00024931,3]
[327897034,1716587440386,-500.0,0.00024931,3]
[327897035,1716587440395,-500.0,0.00024931,3]
[327897036,1716587440405,-500.0,0.00024931,3]
[327897037,1716587440414,-500.0,0.00024931,3]
[327897038,1716587440423,-500.0,0.00024931,3]
[327897039,1716587440432,-500.0,0.00024931,3]
[327897040,1716587440443,-500.0,0.00024931,3]
[327897041,1716587440452,-500.0,0.00024931,3]
[327897042,1716587440461,-500.0,0.00024931,3]
[327897043,1716587440470,-553.2,0.00024931,3]
[327897044,1716587440480,-500.0,0.00024931,3]
[327897045,1716587440489,-500.0,0.00024931,3]
[327897046,1716587440499,-302.30581018,0.00024931,3]
[327897047,1716587440508,-500.0,0.00024931,3]
[327897048,1716587440517,-660.93,0.00024931,3]
[327897049,1716587440526,-500.0,0.00024931,3]
[327897050,1716587440536,-500.0,0.00024931,3]
[327897051,1716587440546,-500.0,0.00024931,3]
[327897052,1716587440556,-834.29,0.00024931,3]
[327897053,1716587440565,-500.0,0.00024931,3]
[327897054,1716587440576,-159.23,0.00024931,3]
[327897055,1716587440586,-500.0,0.00024931,3]
[327897056,1716587440595,-500.0,0.00024931,3]
[327897057,1716587440605,-500.0,0.00024931,3]
[327897058,1716587440614,-500.0,0.00024931,3]
[327897059,1716587440624,-1111.8,0.00024931,3]
[327897060,1716587440634,-500.0,0.00024931,3]
[327897061,1716587440643,-500.0,0.00024931,3]
[327897062,1716587440653,-500.0,0.00024931,3]
[327897063,1716587440663,-500.0,0.00024931,3]
[327897064,1716587440673,-500.0,0.00024931,3]
[327897065,1716587440682,-500.0,0.00024931,3]
[327897066,1716587440693,-1104.44,0.00024931,3]
[327897067,1716587440703,-573.45,0.00024931,3]
[327897068,1716587440712,-500.0,0.00024931,3]
[327897069,1716587440722,-500.0,0.00024931,3]
[327897070,1716587440732,-440.70151592,0.00024931,3]
[327897071,1716587440742,-500.0,0.00024931,3]
[327897072,1716587440751,-500.0,0.00024931,3]
[327897073,1716587440761,-500.0,0.00024931,3]
[327897074,1716587440771,-551.32,0.00024931,3]
[327897075,1716587440780,-500.0,0.00024931,3]
[327897076,1716587440789,-500.0,0.00024931,3]
[327897077,1716587440799,-500.0,0.00024931,3]
[327897078,1716587440808,-500.0,0.00024931,3]
[327897079,1716587440819,-500.0,0.00024931,3]
[327897080,1716587440829,-500.0,0.00024931,3]
[327897081,1716587440838,-500.0,0.00024931,3]
[327897082,1716587440847,-500.0,0.00024931,3]
[327897083,1716587440857,-500.0,0.00024931,3]
[327897084,1716587440866,-500.0,0.00024931,3]
[327897085,1716587440875,-500.0,0.00024931,3]
[327897086,1716587440885,-500.0,0.00024931,3]
[327897087,1716587440895,-1578.99,0.00024999,8]
[327897088,1716587440905,-1381.86,0.00024999,3]
[327897089,1716587440915,-1381.86,0.00024999,3]
[327897090,1716587440925,-401.04849883,0.00025,2]
[327897091,1716587440936,-894.71433164,0.00025,2]
[327897092,1716587440946,-52874.87820126,0.00025,2]
[327897093,1716587440956,-151.0,0.00025119,5]
[327897094,1716587440966,-1578.99,0.00025204,9]
[327897095,1716587440976,-500.0,0.00025205,4]
[327897096,1716587440986,-290.33,0.00025205,4]
[327897097,1716587440996,-500.0,0.00025205,4]
[327897098,1716587441005,-500.0,0.00025205,4]
[327897099,1716587441014,-500.0,0.00025205,4]
[327897100,1716587441024,-500.0,0.00025205,4]
[327897101,1716587441034,-500.0,0.00025205,4]
[327897102,1716587441043,-500.0,0.00025205,4]
[327897103,1716587441052,-500.0,0.00025205,4]
[327897104,1716587441061,-500.0,0.00025205,4]
[327897105,1716587441072,-500.0,0.00025205,4]
[327897106,1716587441082,-500.0,0.00025205,4]
[327897107,1716587441091,-500.0,0.00025205,4]
[327897108,1716587441101,-500.0,0.00025205,4]
[327897109,1716587441110,-500.0,0.00025205,4]
[327897110,1716587441120,-300.86,0.00025205,4]
[327897111,1716587441129,-500.0,0.00025205,4]
[327897112,1716587441139,-500.0,0.00025205,4]
[327897113,1716587441148,-500.0,0.00025205,4]
[327897114,1716587441160,-500.0,0.00025205,4]
[327897115,1716587441170,-660.93,0.00025205,4]
[327897116,1716587441180,-365.45538699,0.00025205,4]
[327897117,1716587441189,-500.0,0.00025205,4]
[327897118,1716587441199,-500.0,0.00025205,4]
[327897119,1716587441208,-834.29,0.00025205,4]
[327897120,1716587441218,-500.0,0.00025205,4]
[327897121,1716587441227,-500.0,0.00025205,4]
[327897122,1716587441239,-500.0,0.00025205,4]
[327897123,1716587441248,-500.0,0.00025205,4]
[327897124,1716587441257,-211.75,0.00025205,4]
[327897125,1716587441266,-1111.8,0.00025205,4]
[327897126,1716587441275,-500.0,0.00025205,4]
[327897127,1716587441285,-500.0,0.00025205,4]
[327897128,1716587441294,-500.0,0.00025205,4]
[327897129,1716587441303,-500.0,0.00025205,4]
[327897130,1716587441312,-500.0,0.00025205,4]
[327897131,1716587441322,-1104.44,0.00025205,4]
[327897132,1716587441332,-512.20554986,0.00025205,4]
[327897133,1716587441341,-500.0,0.00025205,4]
[327897134,1716587441351,-500.0,0.00025205,4]
[327897135,1716587441360,-231.24170626,0.00025205,4]
[327897136,1716587441369,-551.32,0.00025205,4]
[327897137,1716587441378,-500.0,0.00025205,4]
[327897138,1716587441387,-500.0,0.00025205,4]
[327897139,1716587441396,-500.0,0.00025205,4]
[327897140,1716587441405,-500.0,0.00025205,4]
[327897141,1716587441414,-500.0,0.00025205,4]
[327897142,1716587441423,-500.0,0.00025205,4]
[327897143,1716587441433,-500.0,0.00025205,4]
[327897144,1716587441441,-500.0,0.00025205,4]
[327897145,1716587441450,-186.28,0.00025205,4]
[327897146,1716587441459,-500.0,0.00025205,4]
[327897147,1716587441468,-500.0,0.00025205,4]
[327897148,1716587441477,-500.0,0.00025205,4]
[327897149,1716587441486,-506.429005,0.00025437,2]
[327897150,1716587441495,-7341.15827618,0.00025477,2]
[327897151,1716587441504,-1381.86,0.00025478,3]
[327897152,1716587441513,-360.97565246,0.00025479,5]
[327897153,1716587441522,-500.0,0.00025479,5]
[327897154,1716587441531,-500.0,0.00025479,5]
[327897155,1716587441540,-500.0,0.00025479,5]
[327897156,1716587441550,-294.46,0.00025479,5]
[327897157,1716587441558,-500.0,0.00025479,5]
[327897158,1716587441567,-500.0,0.00025479,5]
[327897159,1716587441577,-500.0,0.00025479,5]
[327897160,1716587441587,-306.35,0.00025479,5]
[327897161,1716587441595,-500.0,0.00025479,5]
[327897162,1716587441605,-592.36362551,0.00025479,5]
[327897163,1716587441614,-500.0,0.00025479,5]
[327897164,1716587441624,-500.0,0.00025479,5]
[327897165,1716587441633,-500.0,0.00025479,5]
[327897166,1716587441642,-500.0,0.00025479,5]
[327897167,1716587441651,-500.0,0.00025479,5]
[327897168,1716587441660,-500.0,0.00025479,5]
[327897169,1716587441669,-500.0,0.00025479,5]
[327897170,1716587441678,-660.93,0.00025479,5]
[327897171,1716587441687,-500.0,0.00025479,5]
[327897172,1716587441696,-500.0,0.00025479,5]
[327897173,1716587441705,-834.29,0.00025479,5]
[327897174,1716587441714,-500.0,0.00025479,5]
[327897175,1716587441724,-500.0,0.00025479,5]
[327897176,1716587441733,-500.0,0.00025479,5]
[327897177,1716587441742,-500.0,0.00025479,5]
[327897178,1716587441751,-1111.8,0.00025479,5]
[327897179,1716587441761,-500.0,0.00025479,5]
[327897180,1716587441770,-500.0,0.00025479,5]
[327897181,1716587441780,-500.0,0.00025479,5]
[327897182,1716587441790,-500.0,0.00025479,5]
[327897183,1716587441799,-1104.44,0.00025479,5]
[327897184,1716587441808,-500.0,0.00025479,5]
[327897185,1716587441817,-500.0,0.00025479,5]
[327897186,1716587441827,-551.32,0.00025479,5]
[327897187,1716587441836,-500.0,0.00025479,5]
[327897188,1716587441846,-500.0,0.00025479,5]
[327897189,1716587441856,-500.0,0.00025479,5]
[327897190,1716587441865,-500.0,0.00025479,5]
[327897191,1716587441875,-500.0,0.00025479,5]
[327897192,1716587441885,-500.0,0.00025479,5]
[327897193,1716587441894,-500.0,0.00025479,5]
[327897194,1716587441903,-500.0,0.00025479,5]
[327897195,1716587441912,-500.0,0.00025479,5]
[327897196,1716587441921,-500.0,0.00025479,5]
[327897197,1716587441930,-500.0,0.00025479,5]
[327897198,1716587441941,-693.53941589,0.0002552,2]
[327897199,1716587441950,-1578.99,0.00025752,10]
[327897200,1716587441959,-500.0,0.00025753,6]
[327897201,1716587441969,-500.0,0.00025753,6]
[327897202,1716587441979,-500.0,0.00025753,6]
[327897203,1716587441988,-258.86,0.00025753,6]
[327897204,1716587441998,-500.0,0.00025753,6]
[327897205,1716587442007,-500.0,0.00025753,6]
[327897206,1716587442018,-500.0,0.00025753,6]
[327897207,1716587442027,-500.0,0.00025753,6]
[327897208,1716587442036,-500.0,0.00025753,6]
[327897209,1716587442046,-500.0,0.00025753,6]
[327897210,1716587442056,-500.0,0.00025753,6]
[327897211,1716587442065,-500.0,0.00025753,6]
[327897212,1716587442076,-500.0,0.00025753,6]
[327897213,1716587442085,-500.0,0.00025753,6]
[327897214,1716587442095,-660.93,0.00025753,6]
[327897215,1716587442105,-500.0,0.00025753,6]
[327897216,1716587442115,-834.29,0.00025753,6]
[327897217,1716587442125,-500.0,0.00025753,6]
[327897218,1716587442135,-500.0,0.00025753,6]
[327897219,1716587442144,-500.0,0.00025753,6]
[327897220,1716587442154,-500.0,0.00025753,6]
[327897221,1716587442168,-1111.8,0.00025753,6]
[327897222,1716587442178,-500.0,0.00025753,6]
[327897223,1716587442188,-500.0,0.00025753,6]
[327897224,1716587442199,-500.0,0.00025753,6]
[327897225,1716587442208,-500.0,0.00025753,6]
[327897226,1716587442218,-1104.44,0.00025753,6]
[327897227,1716587442228,-500.0,0.00025753,6]
[327897228,1716587442238,-545.04,0.00025753,6]
[327897229,1716587442247,-551.32,0.00025753,6]
[327897230,1716587442257,-500.0,0.00025753,6]
[327897231,1716587442267,-500.0,0.00025753,6]
[327897232,1716587442277,-362.44,0.00025753,6]
[327897233,1716587442390,-500.0,0.00025753,6]
[327897234,1716587442425,-500.0,0.00025753,6]
[327897235,1716587442435,-500.0,0.00025753,6]
[327897236,1716587442445,-500.0,0.00025753,6]
[327897237,1716587442455,-500.0,0.00025753,6]
[327897238,1716587442465,-351.35,0.00025753,6]
[327897239,1716587442475,-500.0,0.00025753,6]
[327897240,1716587442485,-500.0,0.00025753,6]
[327897241,1716587442495,-11163.7035002,0.00026,2]
[327897242,1716587442504,-255.37,0.00026027,7]
[327897243,1716587442514,-500.0,0.00026027,7]
[327897244,1716587442524,-153.74406954,0.00026027,7]
[327897245,1716587442533,-369.90787271,0.00026027,7]
[327897246,1716587442543,-500.0,0.00026027,7]
[327897247,1716587442552,-500.0,0.00026027,7]
[327897248,1716587442562,-500.0,0.00026027,7]
[327897249,1716587442571,-500.0,0.00026027,7]
[327897250,1716587442581,-500.0,0.00026027,7]
[327897251,1716587442590,-500.0,0.00026027,7]
[327897252,1716587442600,-660.93,0.00026027,7]
[327897253,1716587442609,-436.7,0.00026027,7]
[327897254,1716587442619,-834.29,0.00026027,7]
[327897255,1716587442629,-500.0,0.00026027,7]
[327897256,1716587442638,-500.0,0.00026027,7]
[327897259,1716587442648,-500.0,0.00026027,7]
[327897261,1716587442657,-500.0,0.00026027,7]
[327897262,1716587442666,-1111.8,0.00026027,7]
[327897264,1716587442676,-500.0,0.00026027,7]
[327897266,1716587442685,-207.15,0.00026027,7]
[327897267,1716587442695,-500.0,0.00026027,7]
[327897268,1716587442704,-500.0,0.00026027,7]
[327897269,1716587442714,-1104.44,0.00026027,7]
[327897270,1716587442723,-500.0,0.00026027,7]
[327897271,1716587442732,-551.32,0.00026027,7]
[327897272,1716587442741,-500.0,0.00026027,7]
[327897273,1716587442751,-500.0,0.00026027,7]
[327897274,1716587442761,-500.0,0.00026027,7]
[327897275,1716587442770,-500.0,0.00026027,7]
[327897276,1716587442780,-347.94,0.00026027,7]
[327897277,1716587442789,-500.0,0.00026027,7]
[327897278,1716587442799,-500.0,0.00026027,7]
[327897279,1716587442808,-500.0,0.00026027,7]
[327897280,1716587442817,-500.0,0.00026027,7]
[327897281,1716587442828,-486.56013612,0.00026201,2]
[327897282,1716587442837,-1381.86,0.00026299,3]
[327897283,1716587442846,-1578.99,0.000263,11]
[327897284,1716587442856,-500.0,0.00026301,8]
[327897285,1716587442865,-500.0,0.00026301,8]
[327897286,1716587442875,-500.0,0.00026301,8]
[327897287,1716587442885,-500.0,0.00026301,8]
[327897288,1716587442894,-500.0,0.00026301,8]
[327897289,1716587442904,-500.0,0.00026301,8]
[327897290,1716587442914,-500.0,0.00026301,8]
[327897291,1716587442923,-660.93,0.00026301,8]
[327897292,1716587442933,-834.29,0.00026301,8]
[327897293,1716587442942,-500.0,0.00026301,8]
[327897294,1716587442952,-500.0,0.00026301,8]
[327897295,1716587442962,-459.82,0.00026301,8]
[327897296,1716587442972,-500.0,0.00026301,8]
[327897297,1716587442981,-1111.8,0.00026301,8]
[327897298,1716587442991,-500.0,0.00026301,8]
[327897299,1716587443000,-500.0,0.00026301,8]
[327897300,1716587443009,-500.0,0.00026301,8]
[327897301,1716587443019,-1104.44,0.00026301,8]
[327897302,1716587443028,-500.0,0.00026301,8]
[327897303,1716587443038,-551.32,0.00026301,8]
[327897304,1716587443047,-500.0,0.00026301,8]
[327897305,1716587443057,-500.0,0.00026301,8]
[327897306,1716587443066,-312.5,0.00026301,8]
[327897307,1716587443077,-500.0,0.00026301,8]
[327897308,1716587443087,-500.0,0.00026301,8]
[327897309,1716587443096,-270.34,0.00026301,8]
[327897310,1716587443106,-500.0,0.00026301,8]
[327897311,1716587443115,-500.0,0.00026301,8]
[327897312,1716587443126,-320.99767926,0.00026575,9]
[327897313,1716587443135,-500.0,0.00026575,9]
[327897314,1716587443146,-500.0,0.00026575,9]
[327897315,1716587443156,-500.0,0.00026575,9]
[327897316,1716587443169,-500.0,0.00026575,9]
[327897317,1716587443179,-500.0,0.00026575,9]
[327897318,1716587443189,-500.0,0.00026575,9]
[327897319,1716587443199,-660.93,0.00026575,9]
[327897320,1716587443210,-834.29,0.00026575,9]
[327897321,1716587443220,-500.0,0.00026575,9]
[327897322,1716587443230,-500.0,0.00026575,9]
[327897323,1716587443242,-500.0,0.00026575,9]
[327897324,1716587443252,-1111.8,0.00026575,9]
[327897325,1716587443262,-500.0,0.00026575,9]
[327897326,1716587443272,-500.0,0.00026575,9]
[327897327,1716587443282,-500.0,0.00026575,9]
[327897328,1716587443292,-1104.44,0.00026575,9]
[327897329,1716587443302,-302.98094965,0.00026575,9]
[327897330,1716587443312,-551.32,0.00026575,9]
[327897331,1716587443322,-500.0,0.00026575,9]
[327897333,1716587443332,-500.0,0.00026575,9]
[327897334,1716587443341,-500.0,0.00026575,9]
[327897336,1716587443351,-500.0,0.00026575,9]
[327897337,1716587443360,-500.0,0.00026575,9]
[327897339,1716587443369,-500.0,0.00026849,10]
[327897341,1716587443378,-500.0,0.00026849,10]
[327897343,1716587443387,-500.0,0.00026849,10]
[327897345,1716587443397,-500.0,0.00026849,10]
[327897347,1716587443406,-500.0,0.00026849,10]
[327897349,1716587443416,-660.93,0.00026849,10]
[327897351,1716587443425,-834.29,0.00026849,10]
[327897353,1716587443436,-500.0,0.00026849,10]
[327897355,1716587443445,-500.0,0.00026849,10]
[327897357,1716587443454,-500.0,0.00026849,10]
[327897359,1716587443464,-1111.8,0.00026849,10]
[327897361,1716587443473,-500.0,0.00026849,10]
[327897363,1716587443482,-500.0,0.00026849,10]
[327897364,1716587443492,-500.0,0.00026849,10]
[327897365,1716587443501,-1104.44,0.00026849,10]
[327897366,1716587443510,-551.32,0.00026849,10]
[327897367,1716587443519,-500.0,0.00026849,10]
[327897368,1716587443529,-451.95,0.00026849,10]
[327897369,1716587443538,-500.0,0.00026849,10]
[327897370,1716587443547,-500.0,0.00026849,10]
[327897371,1716587443556,-500.0,0.00026849,10]
[327897372,1716587443566,-760.9951019,0.00027,2]
[327897373,1716587443576,-456.57692779,0.00027,2]
[327897374,1716587443586,-576.94,0.00027123,11]
[327897375,1716587443595,-500.0,0.00027123,11]
[327897376,1716587443605,-496.28,0.00027123,11]
[327897377,1716587443614,-500.0,0.00027123,11]
[327897378,1716587443624,-500.0,0.00027123,11]
[327897379,1716587443633,-660.93,0.00027123,11]
[327897380,1716587443643,-834.29,0.00027123,11]
[327897381,1716587443652,-500.0,0.00027123,11]
[327897382,1716587443662,-500.0,0.00027123,11]
[327897383,1716587443671,-500.0,0.00027123,11]
[327897384,1716587443680,-1111.8,0.00027123,11]
[327897385,1716587443689,-500.0,0.00027123,11]
[327897386,1716587443699,-325.7,0.00027123,11]
[327897387,1716587443708,-500.0,0.00027123,11]
[327897388,1716587443717,-1104.44,0.00027123,11]
[327897389,1716587443726,-551.32,0.00027123,11]
[327897390,1716587443736,-500.0,0.00027123,11]
[327897391,1716587443745,-259.36149527,0.00027123,11]
[327897392,1716587443754,-500.0,0.00027123,11]
[327897393,1716587443764,-500.0,0.00027123,11]
[327897394,1716587443773,-1079.94422972,0.0002739,2]
[327897399,1716587444021,-497.12631725,0.00019131,2]
[327897400,1716587444031,-500.0,0.00024657,2]
[327897401,1716587444042,-57.45830776,0.0002739,2]
[327897402,1716587444053,-500.0,0.00027397,2]
[327897403,1716587444063,-159.30458803,0.00027397,2]
[327897404,1716587444077,-340.69541197,0.00027397,2]
[327897405,1716587444087,-404.74073567,0.00027397,2]
[327897406,1716587444097,-500.0,0.00027397,12]
[327897407,1716587444106,-309.47594837,0.00027397,12]
[327897408,1716587444115,-249.41132699,0.00027397,12]
[327897409,1716587444128,-411.51867301,0.00027397,12]
[327897410,1716587444138,-834.29,0.00027397,12]
[327897411,1716587444148,-358.32812072,0.00027397,12]
[327897412,1716587444159,-500.0,0.00027397,12]
[327897413,1716587444171,-500.0,0.00027397,12]
[327897414,1716587444181,-408.33453314,0.00027397,12]
[327897415,1716587444218,-500.0,0.00024657,2]
[327897416,1716587444227,-500.0,0.00024657,2]
[327897417,1716587444239,-500.0,0.00024931,3]
[327897418,1716587444251,-703.46546686,0.00027397,12]
[327897419,1716587444260,-414.49869964,0.00027397,12]
[327897423,1716587446171,-500.0,0.00024657,2]
[327897424,1716587446181,-191.4,0.00024657,2]
[327897425,1716587544443,154.82968734,9.999e-05,2]
[327897426,1716588273672,-525.0,0.0003349,30]
[327897427,1716588273695,-525.0,0.0003349,30]
[327897428,1716588273718,-525.0,0.0003349,30]
[327897429,1716588273742,-525.0,0.0003349,30]
[327897430,1716588273765,-525.0,0.0003349,30]
[327897431,1716588273787,-525.0,0.0003349,30]
[327897432,1716588273811,-525.0,0.0003349,30]
[327897433,1716588273833,-525.0,0.0003349,30]
[327897434,1716588273856,-525.0,0.0003349,30]
[327897435,1716588273879,-525.0,0.0003349,30]
[327897436,1716588273902,-525.0,0.0003349,30]
[327897437,1716588273924,-5000.0,0.0003349,120]
[327897438,1716588273946,-525.0,0.0003349,30]
[327897439,1716588274106,-525.0,0.0003349,30]
[327897440,1716588274133,-525.0,0.0003349,30]
[327897441,1716588274156,-525.0,0.0003349,30]
[327897442,1716588274178,-525.0,0.0003349,30]
[327897443,1716588274200,-525.0,0.0003349,30]
[327897444,1716588274224,-525.0,0.0003349,30]
[327897445,1716588274246,-525.0,0.0003349,30]
[327897446,1716588274268,-525.0,0.0003349,30]
[327897447,1716588274290,-525.0,0.0003349,30]
[327897448,1716588274314,-525.0,0.0003349,30]
[327897449,1716588274337,-525.0,0.0003349,30]
[327897450,1716588274359,-525.0,0.0003349,30]
[327897451,1716588274382,-525.0,0.0003349,30]
[327897452,1716588274404,-525.0,0.0003349,30]
[327897453,1716588274427,-525.0,0.0003349,30]
[327897454,1716588274452,-525.0,0.0003349,30]
[327897455,1716588274475,-525.0,0.0003349,30]
[327897456,1716588274497,-525.0,0.0003349,30]
[327897457,1716588274522,-525.0,0.0003349,30]
[327897458,1716588274544,-525.0,0.0003349,30]
[327897459,1716588274566,-525.0,0.0003349,30]
[327897460,1716588274589,-483.9054417,0.0003349,30]
[327897461,1716588274612,-525.0,0.0003349,30]
[327897462,1716588274634,-1769.25862963,0.0003349,120]
[327897463,1716588274657,-507.4787199,0.0003349,30]
[327897464,1716588274678,-1322.0328345,0.0003349,30]
[327897465,1716588274700,-898.5314864,0.0003349,30]
[327897466,1716588274722,-2501.36380027,0.0003349,120]
[327897467,1716588274744,-1164.92233338,0.0003349,30]
[327897468,1716588274767,-2999.99999901,0.0003349,30]
[327897469,1716588274789,-1574.79639938,0.0003349,30]
[327897470,1716588274812,-1510.19788045,0.0003349,30]
[327897471,1716588274834,-415.32705579,0.0003349,30]
[327897472,1716588274856,-2000.0,0.0003349,120]
[327897473,1716588274878,-228.52126914,0.0003349,30]